[Event "11th LCC Rapid 2019"]
[Site "London"]
[Date "2019.12.07"]
[Round "4.17"]
[White "Ortiz Sanchez, Luis"]
[Black "Willmoth, Robert F"]
[Result "1/2-1/2"]
[WhiteElo "1947"]
[BlackElo "2111"]
[PlyCount "89"]
[EventDate "2019.12.08"]
[EventType "swiss"]
[EventCountry "ENG"]
[TimeControl "15+10"]
[WhiteClock "0:01:36"]
[BlackClock "0:03:48"]

1. d3 {[%emt 0:00:00]} e5 {[%emt 0:00:00]} 2. Nd2 {[%emt 0:00:16]} Nc6 {[%emt 0:00:00]} 3. e4 {[%emt 0:00:00]} Bc5 {[%emt 0:00:00]} 4. Nc4 {[%emt 0:00:00]} d5 {[%emt 0:00:00]} 5. exd5 {[%emt 0:00:00]} Qd7 {[%emt 0:00:02]} 6. d6 Qxd6 {[%emt 0:00:00]} 7. Qf3 {[%emt 0:00:00]} Qe6 {[%emt 0:00:00]} 8. Ne2 {[%emt 0:00:00]} Nf6 {[%emt 0:00:00]} 9. Qg3 {[%emt 0:00:00]} Bd7 {[%emt 0:00:00]} 10. Be3 {[%emt 0:00:00]} Bxe3 {[%emt 0:00:00]} 11. fxe3 {[%emt 0:00:00]} O-O {[%emt 0:00:00]} 12. Nc3 {[%emt 0:00:00]} Nb4 {[%emt 0:00:00]} 13. Rc1 {[%emt 0:00:00]} Rfe8 {[%emt 0:00:00]} 14. Be2 {[%emt 0:00:00]} b5 {[%emt 0:00:00]} 15. Nd2 {[%emt 0:00:00]} Nxa2 {[%emt 0:00:00]} 16. Nxa2 {[%emt 0:00:00]} Qxa2 {[%emt 0:00:00]} 17. b3 {[%emt 0:00:00]} Qa5 {[%emt 0:00:00]} 18. Rf1 {[%emt 0:00:00]} Qb6 {[%emt 0:00:00]} 19. Rf2 {[%emt 0:00:00]} a5 {[%emt 0:00:00]} 20. Kf1 {[%emt 0:00:00]} a4 {[%emt 0:00:00]} 21. bxa4 {[%emt 0:00:00]} bxa4 {[%emt 0:00:00]} 22. Nc4 {[%emt 0:00:00]} Qe6 {[%emt 0:00:00]} 23. Kg1 {[%emt 0:00:00]} a3 {[%emt 0:00:00]} 24. Bf3 {[%emt 0:00:00]} e4 {[%emt 0:00:00]} 25. Be2 {[%emt 0:00:00]} a2 {[%emt 0:00:00]} 26. Rff1 {[%emt 0:00:00]} Nd5 {[%emt 0:00:00]} 27. h3 {[%emt 0:00:00]} f5 {[%emt 0:00:00]} 28. dxe4 {[%emt 0:00:00]} Qxe4 {[%emt 0:00:00]} 29. Bd3 {[%emt 0:00:00]} Qe7 {[%emt 0:00:00]} 30. Ra1 {[%emt 0:00:00]} Bb5 {[%emt 0:00:00]} 31. Rxf5 {[%emt 0:00:00]} c6 {[%emt 0:00:56]} 32. Re5 {[%emt 0:00:00]} Qb4 {[%emt 0:00:32]} 33. Qh4 {[%emt 0:00:00]} Nf6 {[%emt 0:00:40]} 34. Rxe8+ {[%emt 0:00:03]} Rxe8 {[%emt 0:00:05]} 35. Qd4 {[%emt 0:00:02]} c5 {[%emt 0:01:09]} 36. Qb2 {[%emt 0:01:40]} Qxb2 {[%emt 0:00:02]} 37. Nxb2 {[%emt 0:00:00]} Bxd3 {[%emt 0:00:08]} 38. Nxd3 {[%emt 0:00:04]} Ra8 {[%emt 0:00:29]} 39. Nxc5 {[%emt 0:00:15]} Nd5 {[%emt 0:00:02]} 40. Nb3 {[%emt 0:00:39]} Nc3 {[%emt 0:00:26]} 41. Kf1 {[%emt 0:00:29]} Rd8 {[%emt 0:00:29]} 42. Ke1 {[%emt 0:00:07]} Kf7 {[%emt 0:00:03]} 43. Nd4 {[%emt 0:00:20]} Rb8 {[%emt 0:00:20]} 44. Nb3 {[%emt 0:00:02]} Rd8 {[%emt 0:00:36]} 45. Nd4 {[%emt 0:00:00] Ke6 [%clk 00:01:26] [%emt 00:00:08]} 1/2-1/2

[Event "11th LCC Rapid 2019"]
[Site "London"]
[Date "2019.12.07"]
[Round "4.18"]
[White "Stoyanov, Viktor"]
[Black "Dupuis, Denis K"]
[Result "1-0"]
[WhiteElo "2272"]
[BlackElo "1599"]
[PlyCount "99"]
[EventDate "2019.12.08"]
[EventType "swiss"]
[EventCountry "ENG"]
[TimeControl "15+10"]
[WhiteClock "0:06:57"]
[BlackClock "0:07:37"]

1. e4 {[%emt 0:00:00]} e5 {[%emt 0:00:00]} 2. Nf3 {[%emt 0:00:00]} Nc6 {[%emt 0:00:00]} 3. Bb5 {[%emt 0:00:00]} f5 {[%emt 0:00:00]} 4. d3 {[%emt 0:00:00]} fxe4 {[%emt 0:00:00]} 5. dxe4 {[%emt 0:00:00]} Nf6 {[%emt 0:00:00]} 6. O-O {[%emt 0:00:00]} Bc5 {[%emt 0:00:00]} 7. Qe2 {[%emt 0:00:00]} d6 {[%emt 0:00:00]} 8. c3 {[%emt 0:00:00]} O-O {[%emt 0:00:00]} 9. b4 {[%emt 0:00:00]} Bb6 {[%emt 0:00:00]} 10. a4 {[%emt 0:00:00]} a6 {[%emt 0:00:00]} 11. Bc4+ {[%emt 0:00:00]} Kh8 {[%emt 0:00:00]} 12. Bg5 {[%emt 0:00:00]} h6 {[%emt 0:00:00]} 13. Bh4 {[%emt 0:00:00]} Qe8 {[%emt 0:00:00]} 14. Nbd2 {[%emt 0:00:00]} Bg4 {[%emt 0:00:00]} 15. h3 {[%emt 0:00:00]} Bxf3 {[%emt 0:00:00]} 16. Nxf3 {[%emt 0:00:00]} Qg6 {[%emt 0:00:00]} 17. Nd2 {[%emt 0:00:00]} Nh5 {[%emt 0:00:00]} 18. Qg4 {[%emt 0:00:00]} Qxg4 {[%emt 0:00:00]} 19. hxg4 {[%emt 0:00:00]} Nf6 {[%emt 0:00:00]} 20. Be2 {[%emt 0:00:00]} g5 {[%emt 0:00:00]} 21. Bg3 {[%emt 0:00:00]} d5 {[%emt 0:00:00]} 22. b5 {[%emt 0:00:00]} axb5 {[%emt 0:00:00]} 23. axb5 {[%emt 0:00:00]} Rxa1 {[%emt 0:00:00]} 24. Rxa1 {[%emt 0:00:00]} Na7 {[%emt 0:00:00]} 25. Bxe5 {[%emt 0:00:00]} Kg8 {[%emt 0:00:00]} 26. Bd4 {[%emt 0:00:00]} c5 {[%emt 0:00:00]} 27. Bxf6 {[%emt 0:00:00]} Rxf6 {[%emt 0:00:00]} 28. exd5 {[%emt 0:00:00]} c4 {[%emt 0:00:00]} 29. Bf3 {[%emt 0:00:00]} Nxb5 {[%emt 0:00:00]} 30. Nxc4 {[%emt 0:00:00]} Nxc3 {[%emt 0:00:00]} 31. Ra8+ {[%emt 0:00:00]} Kg7 {[%emt 0:00:00]} 32. Rb8 {[%emt 0:00:00]} Bc5 {[%emt 0:00:00]} 33. Rxb7+ {[%emt 0:00:00]} Rf7 {[%emt 0:00:00]} 34. Rb2 {[%emt 0:00:00]} Rd7 {[%emt 0:00:00]} 35. Rd2 {[%emt 0:00:00]} Kf6 {[%emt 0:00:00]} 36. Rd3 {[%emt 0:00:00]} Nb5 {[%emt 0:00:00]} 37. Nd2 {[%emt 0:00:00]} Ke5 {[%emt 0:00:00]} 38. Nc4+ {[%emt 0:00:00]} Kf6 {[%emt 0:00:00]} 39. Kf1 {[%emt 0:00:00]} Nd4 {[%emt 0:00:00]} 40. Be4 {[%emt 0:00:24]} Ra7 {[%emt 0:00:00]} 41. Rd1 {[%emt 0:00:00]} Ra2 {[%emt 0:00:00]} 42. Bb1 {[%emt 0:00:00]} Ra1 {[%emt 0:00:00]} 43. Ne3 {[%emt 0:00:00]} Ke5 {[%emt 0:00:00]} 44. g3 {[%emt 0:00:00]} Nb3 {[%emt 0:00:18]} 45. Nc4+ {[%emt 0:00:04]} Kf6 {[%emt 0:00:06]} 46. d6 {[%emt 0:00:12]} Ke6 {[%emt 0:00:24]} 47. Bf5+ {[%emt 0:00:02]} Kf7 {[%emt 0:00:05]} 48. Ne5+ {[%emt 0:00:11]} Kf6 {[%emt 0:00:30]} 49. Nd7+ {[%emt 0:00:04]} Kf7 {[%emt 0:00:05]} 50. Rxa1 {[%emt 0:00:01]} 1-0

[Event "11th LCC Rapid 2019"]
[Site "London"]
[Date "2019.12.07"]
[Round "4.19"]
[White "Orgler, Philipp"]
[Black "Akeya-Price, Robert"]
[Result "0-1"]
[WhiteElo "2056"]
[BlackElo "1880"]
[PlyCount "56"]
[EventDate "2019.12.08"]
[EventType "swiss"]
[EventCountry "ENG"]
[TimeControl "15+10"]
[WhiteClock "0:08:47"]
[BlackClock "0:08:47"]

1. b3 {[%emt 0:00:00]} d5 {[%emt 0:00:00]} 2. Bb2 {[%emt 0:00:00]} Nf6 {[%emt 0:00:00]} 3. e3 {[%emt 0:00:00]} g6 {[%emt 0:00:00]} 4. Nf3 {[%emt 0:00:00]} Bg7 {[%emt 0:00:00]} 5. d4 {[%emt 0:00:00]} O-O {[%emt 0:00:00]} 6. Bd3 {[%emt 0:00:00]} Bg4 {[%emt 0:00:00]} 7. Nbd2 {[%emt 0:00:00]} Nbd7 {[%emt 0:00:00]} 8. O-O {[%emt 0:00:00]} Re8 {[%emt 0:00:00]} 9. h3 {[%emt 0:00:00]} Bf5 {[%emt 0:00:00]} 10. Ne5 {[%emt 0:00:00]} Bxd3 {[%emt 0:00:00]} 11. cxd3 {[%emt 0:00:00]} c5 {[%emt 0:00:00]} 12. dxc5 {[%emt 0:00:00]} Nxc5 {[%emt 0:00:00]} 13. d4 {[%emt 0:00:00]} Nce4 {[%emt 0:00:00]} 14. Nxe4 {[%emt 0:00:00]} Nxe4 {[%emt 0:00:00]} 15. Rc1 {[%emt 0:00:00]} Rc8 {[%emt 0:00:00]} 16. Rxc8 {[%emt 0:00:00]} Qxc8 {[%emt 0:00:00]} 17. Qd3 {[%emt 0:00:00]} Qf5 {[%emt 0:00:00]} 18. f3 {[%emt 0:00:00]} Ng3 {[%emt 0:00:00]} 19. Qxf5 {[%emt 0:00:00]} gxf5 {[%emt 0:00:00]} 20. Re1 {[%emt 0:00:00]} Rc8 {[%emt 0:00:00]} 21. Ba3 {[%emt 0:00:00]} Bf6 {[%emt 0:00:00]} 22. Kh2 {[%emt 0:00:00]} Bh4 {[%emt 0:00:00]} 23. Rc1 {[%emt 0:00:00]} Rxc1 {[%emt 0:00:00]} 24. Bxc1 {[%emt 0:00:00]} Ne2 {[%emt 0:00:00]} 25. Ba3 {[%emt 0:00:00]} Bg3+ {[%emt 0:00:00]} 26. Kh1 {[%emt 0:00:00]} e6 {[%emt 0:00:00]} 27. Bb4 {[%emt 0:00:00]} Bf2 {[%emt 0:00:00]} 28. Bd2 {[%emt 0:00:00]} Ng3+ {[%emt 0:00:00] Bc1 [%emt 00:00:06]} 0-1

[Event "11th LCC Rapid 2019"]
[Site "London"]
[Date "2019.12.07"]
[Round "4.20"]
[White "Kuzhelev, Timur"]
[Black "Karumazondo, Ragarirai Ernest"]
[Result "1-0"]
[WhiteElo "1745"]
[BlackElo "1900"]
[PlyCount "67"]
[EventDate "2019.12.08"]
[EventType "swiss"]
[EventCountry "ENG"]
[TimeControl "15+10"]
[WhiteClock "0:00:12"]
[BlackClock "0:12:32"]

1. e4 {[%emt 0:00:00]} c5 {[%emt 0:00:00]} 2. Nf3 {[%emt 0:00:00]} Nc6 {[%emt 0:00:00]} 3. Nc3 {[%emt 0:00:00]} Nf6 {[%emt 0:00:00]} 4. d3 {[%emt 0:00:00]} e6 {[%emt 0:00:00]} 5. g3 {[%emt 0:00:00]} d5 {[%emt 0:00:00]} 6. exd5 {[%emt 0:00:00]} exd5 {[%emt 0:00:00]} 7. Bg2 {[%emt 0:00:00]} Bg4 {[%emt 0:00:00]} 8. O-O {[%emt 0:00:00]} Be7 {[%emt 0:00:00]} 9. Bf4 {[%emt 0:00:00]} Qd7 {[%emt 0:00:00]} 10. Qd2 {[%emt 0:00:00]} h6 {[%emt 0:00:00]} 11. Rfe1 {[%emt 0:00:00]} g5 {[%emt 0:00:00]} 12. Be5 {[%emt 0:00:00]} O-O-O {[%emt 0:00:00]} 13. d4 {[%emt 0:00:00]} Rhg8 {[%emt 0:00:00]} 14. Bxf6 {[%emt 0:00:00]} Bxf6 {[%emt 0:00:00]} 15. dxc5 {[%emt 0:00:00]} h5 {[%emt 0:00:00]} 16. Rad1 {[%emt 0:00:00]} d4 {[%emt 0:00:00]} 17. Nb5 {[%emt 0:00:00]} h4 {[%emt 0:00:00]} 18. Nd6+ {[%emt 0:00:00]} Kb8 {[%emt 0:00:00]} 19. b4 {[%emt 0:00:00]} hxg3 {[%emt 0:00:00]} 20. fxg3 {[%emt 0:00:00]} Bxf3 {[%emt 0:00:00]} 21. Bxf3 {[%emt 0:00:00]} g4 {[%emt 0:00:00]} 22. Bxc6 {[%emt 0:00:00]} Qxc6 {[%emt 0:00:00]} 23. Qf4 {[%emt 0:00:00]} Bg5 {[%emt 0:00:00]} 24. Qxd4 {[%emt 0:00:00]} f5 {[%emt 0:00:00]} 25. Qd5 {[%emt 0:00:00]} Qd7 {[%emt 0:00:00]} 26. c4 {[%emt 0:00:00]} f4 {[%emt 0:00:00]} 27. Nf7 {[%emt 0:00:00]} Qxd5 {[%emt 0:03:40]} 28. cxd5 {[%emt 0:00:00]} Rdf8 {[%emt 0:00:23]} 29. Nxg5 {[%emt 0:00:00]} Rxg5 {[%emt 0:00:01]} 30. d6 {[%emt 0:00:00]} fxg3 {[%emt 0:00:03]} 31. hxg3 {[%emt 0:00:00]} a5 {[%emt 0:00:11]} 32. d7 {[%emt 0:00:00]} Rd8 {[%emt 0:00:11]} 33. b5 {[%emt 0:00:00]} Rxc5 {[%emt 0:01:04]} 34. Re8 {[%emt 0:00:00]} 1-0

[Event "11th LCC Rapid 2019"]
[Site "London"]
[Date "2019.12.07"]
[Round "4.21"]
[White "Jezierski, Colum"]
[Black "Rushbrooke, Tibo"]
[Result "1-0"]
[WhiteElo "1908"]
[BlackElo "1730"]
[PlyCount "35"]
[EventDate "2019.12.08"]
[EventType "swiss"]
[EventCountry "ENG"]
[TimeControl "15+10"]
[WhiteClock "0:01:47"]
[BlackClock "0:09:00"]

1. e4 {[%emt 0:00:00]} e5 {[%emt 0:00:00]} 2. Nf3 {[%emt 0:00:00]} Nc6 {[%emt 0:00:00]} 3. Bb5 {[%emt 0:00:00]} a6 {[%emt 0:00:00]} 4. Ba4 {[%emt 0:00:00]} Nf6 {[%emt 0:00:00]} 5. d3 {[%emt 0:00:00]} Bc5 {[%emt 0:00:00]} 6. O-O {[%emt 0:00:00]} d6 {[%emt 0:00:00]} 7. h3 {[%emt 0:00:00]} O-O {[%emt 0:00:00]} 8. c3 {[%emt 0:00:00]} Ba7 {[%emt 0:00:00]} 9. Bg5 {[%emt 0:00:00]} h6 {[%emt 0:00:00]} 10. Bh4 {[%emt 0:00:00]} g5 {[%emt 0:00:00]} 11. Nxg5 {[%emt 0:00:00]} Nxe4 {[%emt 0:00:00]} 12. Nf3 {[%emt 0:00:00]} Ng5 {[%emt 0:00:00]} 13. Kh1 {[%emt 0:00:00]} Kh8 {[%emt 0:00:00]} 14. Nxg5 {[%emt 0:00:00]} hxg5 {[%emt 0:00:05]} 15. Qh5+ {[%emt 0:00:00]} Kg8 {[%emt 0:00:03]} 16. Bxg5 {[%emt 0:00:00]} Qd7 {[%emt 0:00:02]} 17. Bf6 {[%emt 0:00:00]} Qf5 {[%emt 0:01:08]} 18. Qh8# {[%emt 0:00:00]} 1-0

[Event "11th LCC Rapid 2019"]
[Site "London"]
[Date "2019.12.07"]
[Round "4.22"]
[White "Onslow, Teddy"]
[Black "Conway, Paul Bernard"]
[Result "1-0"]
[WhiteElo "1746"]
[BlackElo "1837"]
[PlyCount "100"]
[EventDate "2019.12.08"]
[EventType "swiss"]
[EventCountry "ENG"]
[TimeControl "15+10"]
[BlackClock "0:00:19"]

1. d4 {[%emt 0:00:00]} Nf6 {[%emt 0:00:00]} 2. Bf4 {[%emt 0:00:00]} d6 {[%emt 0:00:00]} 3. Nc3 {[%emt 0:00:00]} Nbd7 {[%emt 0:00:00]} 4. e4 {[%emt 0:00:00]} e5 {[%emt 0:00:00]} 5. dxe5 {[%emt 0:00:00]} dxe5 {[%emt 0:00:00]} 6. Bg5 {[%emt 0:00:00]} Be7 {[%emt 0:00:00]} 7. Nf3 {[%emt 0:00:00]} c6 {[%emt 0:00:00]} 8. Qd2 {[%emt 0:00:00]} b5 {[%emt 0:00:00]} 9. Bxf6 {[%emt 0:00:00]} Bxf6 {[%emt 0:00:00]} 10. a3 {[%emt 0:00:00]} O-O {[%emt 0:00:00]} 11. O-O-O {[%emt 0:00:00]} a5 {[%emt 0:00:00]} 12. g4 {[%emt 0:00:00]} b4 {[%emt 0:00:00]} 13. Nb1 {[%emt 0:00:00]} Be7 {[%emt 0:00:00]} 14. h4 {[%emt 0:00:00]} bxa3 {[%emt 0:00:00]} 15. Nxa3 {[%emt 0:00:00]} Bxa3 {[%emt 0:00:00]} 16. bxa3 {[%emt 0:00:00]} Qe7 {[%emt 0:00:00]} 17. Qd6 {[%emt 0:00:00]} Qxd6 {[%emt 0:00:00]} 18. Rxd6 {[%emt 0:00:00]} Nc5 {[%emt 0:00:00]} 19. Bd3 {[%emt 0:00:00]} Bxg4 {[%emt 0:00:00]} 20. Nxe5 {[%emt 0:00:00]} Nxd3+ {[%emt 0:00:00]} 21. cxd3 {[%emt 0:00:00]} Be6 {[%emt 0:00:00]} 22. Rxc6 {[%emt 0:00:00]} f6 {[%emt 0:00:00]} 23. Nc4 {[%emt 0:00:00]} Bf7 {[%emt 0:00:12]} 24. Kd2 {[%emt 0:00:00]} Rfd8 {[%emt 0:00:16]} 25. Rb1 {[%emt 0:00:00]} a4 {[%emt 0:00:47]} 26. Ke3 {[%emt 0:00:37]} h6 {[%emt 0:00:09]} 27. Rc7 {[%emt 0:01:04]} Rab8 {[%emt 0:00:03]} 28. Rbb7 {[%emt 0:00:10]} Rxb7 {[%emt 0:00:03]} 29. Rxb7 {[%emt 0:00:01]} Kf8 {[%emt 0:00:54]} 30. f4 {[%emt 0:00:11]} g5 {[%emt 0:00:25]} 31. fxg5 {[%emt 0:00:29]} fxg5 {[%emt 0:00:07]} 32. hxg5 {[%emt 0:00:01]} hxg5 {[%emt 0:00:02]} 33. Ne5 {[%emt 0:00:37]} Bb3 {[%emt 0:00:38]} 34. Ng6+ {[%emt 0:00:27]} Kg8 {[%emt 0:00:04]} 35. d4 {[%emt 0:01:13]} Rd6 {[%emt 0:00:08]} 36. Ne7+ {[%emt 0:00:26]} Kf8 {[%emt 0:00:08]} 37. Nf5 {[%emt 0:00:06]} Rf6 {[%emt 0:00:35]} 38. Rd7 {[%emt 0:00:55]} Be6 {[%emt 0:00:37]} 39. Rd8+ {[%emt 0:00:04]} Kf7 {[%emt 0:00:01]} 40. Ng3 {[%emt 0:00:15]} g4 {[%emt 0:00:10]} 41. Ke2 {[%emt 0:00:14]} Rf3 {[%emt 0:00:05]} 42. Nh5 {[%emt 0:00:11]} Rxa3 {[%emt 0:00:11]} 43. d5 {[%emt 0:00:01]} Ke7 {[%emt 0:00:20]} 44. Ra8 {[%emt 0:00:10]} Bd7 {[%emt 0:00:19]} 45. Rg8 {[%emt 0:00:14]} Bb5+ {[%emt 0:00:18]} 46. Kf2 {[%emt 0:00:04]} Rf3+ {[%emt 0:00:11]} 47. Kg2 {[%emt 0:00:07]} Bd7 {[%emt 0:00:32]} 48. e5 {[%emt 0:00:17]} Rf8 {[%emt 0:00:31]} 49. Rg7+ {[%emt 0:00:17]} Rf7 {[%emt 0:00:23]} 50. Rg8 {[%emt 0:00:05]} Rh7 {[%emt 0:00:26]} 1-0

[Event "11th LCC Rapid 2019"]
[Site "London"]
[Date "2019.12.07"]
[Round "4.23"]
[White "Phillips, David A"]
[Black "Watson, Jacob"]
[Result "0-1"]
[WhiteElo "2055"]
[BlackElo "1922"]
[PlyCount "50"]
[EventDate "2019.12.08"]
[EventType "swiss"]
[EventCountry "ENG"]
[TimeControl "15+10"]
[WhiteClock "0:07:34"]
[BlackClock "0:00:21"]

1. d4 {[%emt 0:00:00]} d5 {[%emt 0:00:00]} 2. Bf4 {[%emt 0:00:00]} Nf6 {[%emt 0:00:00]} 3. e3 {[%emt 0:00:00]} e6 {[%emt 0:00:00]} 4. Nf3 {[%emt 0:00:00]} Nbd7 {[%emt 0:00:00]} 5. c3 {[%emt 0:00:00]} b6 {[%emt 0:00:00]} 6. Nbd2 {[%emt 0:00:00]} Bb7 {[%emt 0:00:00]} 7. Bd3 {[%emt 0:00:00]} Be7 {[%emt 0:00:00]} 8. Qe2 {[%emt 0:00:00]} c5 {[%emt 0:00:00]} 9. Ne5 {[%emt 0:00:00]} O-O {[%emt 0:00:00]} 10. h4 {[%emt 0:00:00]} Ne4 {[%emt 0:00:00]} 11. Nxd7 {[%emt 0:00:00]} Qxd7 {[%emt 0:00:00]} 12. Nxe4 {[%emt 0:00:00]} dxe4 {[%emt 0:00:00]} 13. Bc2 {[%emt 0:00:00]} Bd6 {[%emt 0:00:00]} 14. Qg4 {[%emt 0:00:00]} f5 {[%emt 0:00:00]} 15. Qg3 {[%emt 0:00:00]} Bxf4 {[%emt 0:00:00]} 16. Qxf4 {[%emt 0:00:00]} cxd4 {[%emt 0:00:00]} 17. exd4 {[%emt 0:00:00]} Bd5 {[%emt 0:00:00]} 18. Qe5 {[%emt 0:00:00]} Rac8 {[%emt 0:00:00]} 19. Rh3 {[%emt 0:00:00]} Qc7 {[%emt 0:00:00]} 20. Qxc7 {[%emt 0:00:00]} Rxc7 {[%emt 0:00:00]} 21. Re3 {[%emt 0:00:00]} Rcf7 {[%emt 0:00:00]} 22. O-O-O {[%emt 0:01:51]} b5 {[%emt 0:00:00]} 23. Kb1 {[%emt 0:00:54]} Rb7 {[%emt 0:00:00]} 24. Rde1 {[%emt 0:00:46]} b4 {[%emt 0:00:00]} 25. Ka1 {[%emt 0:00:33]} Rfb8 {[%emt 0:00:00]} 0-1

[Event "11th LCC Rapid 2019"]
[Site "London"]
[Date "2019.12.07"]
[Round "4.24"]
[White "Clarke, Connor"]
[Black "Nayak, Raghav"]
[Result "1/2-1/2"]
[WhiteElo "1704"]
[BlackElo "1914"]
[PlyCount "153"]
[EventDate "2019.12.08"]
[EventType "swiss"]
[EventCountry "ENG"]
[TimeControl "15+10"]
[WhiteClock "0:00:39"]
[BlackClock "0:01:48"]

1. d4 {[%emt 0:00:00]} Nf6 {[%emt 0:00:00]} 2. Nc3 {[%emt 0:00:00]} d5 {[%emt 0:00:00]} 3. Bf4 {[%emt 0:00:00]} g6 {[%emt 0:00:00]} 4. e3 {[%emt 0:00:00]} Bg7 {[%emt 0:00:00]} 5. h4 {[%emt 0:00:00]} h5 {[%emt 0:00:00]} 6. Nf3 {[%emt 0:00:00]} a6 {[%emt 0:00:00]} 7. Ne5 {[%emt 0:00:00]} Bf5 {[%emt 0:00:00]} 8. Bd3 {[%emt 0:00:00]} Bxd3 {[%emt 0:00:00]} 9. Qxd3 {[%emt 0:00:00]} Nbd7 {[%emt 0:01:23]} 10. Rh3 {[%emt 0:00:00]} c5 {[%emt 0:00:00]} 11. Nxd7 {[%emt 0:00:00]} Qxd7 {[%emt 0:00:00]} 12. dxc5 {[%emt 0:00:00]} O-O {[%emt 0:00:00]} 13. O-O-O {[%emt 0:00:00]} Rfd8 {[%emt 0:00:00]} 14. f3 {[%emt 0:00:00]} Rac8 {[%emt 0:00:00]} 15. Be5 {[%emt 0:00:00]} Rxc5 {[%emt 0:00:00]} 16. Bd4 {[%emt 0:00:00]} Rc6 {[%emt 0:00:00]} 17. Bxf6 {[%emt 0:00:00]} Rxf6 {[%emt 0:00:00]} 18. e4 {[%emt 0:00:00]} Rd6 {[%emt 0:00:00]} 19. exd5 {[%emt 0:00:00]} Bxc3 {[%emt 0:00:00]} 20. Qxc3 {[%emt 0:00:00]} Rxd5 {[%emt 0:00:00]} 21. Rxd5 {[%emt 0:00:00]} Qxd5 {[%emt 0:00:00]} 22. Rh1 {[%emt 0:00:00]} Qxa2 {[%emt 0:00:00]} 23. Qa3 {[%emt 0:00:00]} Qxa3 {[%emt 0:00:54]} 24. bxa3 {[%emt 0:00:00]} e5 {[%emt 0:00:13]} 25. Re1 {[%emt 0:00:00]} f6 {[%emt 0:00:08]} 26. Re3 {[%emt 0:00:24]} Rd4 {[%emt 0:00:21]} 27. g3 {[%emt 0:00:58]} Kf7 {[%emt 0:00:05]} 28. Rc3 {[%emt 0:00:05]} Ke6 {[%emt 0:00:19]} 29. Rc7 {[%emt 0:00:34]} Rd7 {[%emt 0:00:01]} 30. Rc8 {[%emt 0:00:06]} Kf5 {[%emt 0:00:30]} 31. Rg8 {[%emt 0:01:01]} g5 {[%emt 0:00:55]} 32. hxg5 {[%emt 0:00:01]} fxg5 {[%emt 0:00:02]} 33. Rh8 {[%emt 0:00:07]} Kg6 {[%emt 0:00:01]} 34. Re8 {[%emt 0:00:23]} Rd5 {[%emt 0:00:32]} 35. Rg8+ {[%emt 0:00:06]} Kh6 {[%emt 0:00:06]} 36. Rh8+ {[%emt 0:00:02]} Kg7 {[%emt 0:00:01]} 37. Rxh5 {[%emt 0:00:07]} Kg6 {[%emt 0:00:04]} 38. Rh8 {[%emt 0:00:27]} Rd7 {[%emt 0:00:33]} 39. Rg8+ {[%emt 0:00:32]} Kh6 {[%emt 0:00:05]} 40. Rf8 {[%emt 0:00:29]} Kg6 {[%emt 0:00:15]} 41. Re8 {[%emt 0:00:18]} Rf7 {[%emt 0:00:10]} 42. Rxe5 {[%emt 0:00:44]} Rxf3 {[%emt 0:00:02]} 43. g4 {[%emt 0:00:08]} Rxa3 {[%emt 0:00:05]} 44. Re6+ {[%emt 0:00:02]} Kf7 {[%emt 0:00:03]} 45. Re5 {[%emt 0:00:15]} Kf6 {[%emt 0:00:02]} 46. Rf5+ {[%emt 0:00:09]} Kg6 {[%emt 0:00:01]} 47. Rd5 {[%emt 0:00:09]} Ra4 {[%emt 0:00:45]} 48. Rd6+ {[%emt 0:00:01]} Kf7 {[%emt 0:00:04]} 49. Rd7+ {[%emt 0:00:01]} Ke8 {[%emt 0:00:17]} 50. Rxb7 {[%emt 0:00:03]} Rxg4 {[%emt 0:00:02]} 51. Ra7 {[%emt 0:00:18]} Ra4 {[%emt 0:00:02]} 52. Rg7 {[%emt 0:00:03]} Ra5 {[%emt 0:00:00]} 53. Kd2 {[%emt 0:00:20]} Kf8 {[%emt 0:00:01]} 54. Rc7 {[%emt 0:00:07]} g4 {[%emt 0:00:18]} 55. Ke3 {[%emt 0:00:14]} g3 {[%emt 0:00:35]} 56. Kf3 {[%emt 0:00:04]} Rg5 {[%emt 0:00:03]} 57. Kg2 {[%emt 0:00:03]} a5 {[%emt 0:00:03]} 58. Ra7 {[%emt 0:00:02]} Ke8 {[%emt 0:00:08]} 59. c4 {[%emt 0:00:12]} Kd8 {[%emt 0:00:01]} 60. c5 {[%emt 0:01:18]} Rxc5 {[%emt 0:00:26]} 61. Kxg3 {[%emt 0:00:02]} Kc8 {[%emt 0:00:19]} 62. Kf3 {[%emt 0:00:03]} Kb8 {[%emt 0:00:01]} 63. Rh7 {[%emt 0:00:03]} Re5 {[%emt 0:00:16]} 64. Rh2 {[%emt 0:00:21]} Kb7 {[%emt 0:00:06]} 65. Re2 {[%emt 0:00:21]} Rd5 {[%emt 0:00:17]} 66. Ke3 {[%emt 0:00:05]} Kb6 {[%emt 0:00:00]} 67. Rd2 {[%emt 0:00:03]} Rc5 {[%emt 0:00:12]} 68. Kd3 {[%emt 0:00:07]} Kb5 {[%emt 0:00:05]} 69. Rc2 {[%emt 0:00:05]} Rh5 {[%emt 0:00:16]} 70. Kc3 {[%emt 0:00:03]} Rh3+ {[%emt 0:00:03]} 71. Kb2 {[%emt 0:00:01]} Kb4 {[%emt 0:00:06]} 72. Rg2 {[%emt 0:00:02]} Rh4 {[%emt 0:00:31]} 73. Rf2 {[%emt 0:00:01]} a4 {[%emt 0:00:01]} 74. Rg2 {[%emt 0:00:01]} a3+ {[%emt 0:00:09]} 75. Ka2 {[%emt 0:00:05]} Rf4 {[%emt 0:00:14]} 76. Rh2 {[%emt 0:00:01]} Re4 {[%emt 0:00:04]} 77. Rg2 {[%emt 0:00:00]} 1/2-1/2